[Event "European School-ch 2019"]
[Site "Mamaia"]
[Date "2019.06.06"]
[Round "7.34"]
[White "Korovko, Iakov"]
[Black "Kumar, Sanjit S"]
[Result "1/2-1/2"]
[ECO "C45"]
[WhiteElo "1232"]
[BlackElo "1392"]
[Annotator "NA RC"]
[PlyCount "98"]
[EventDate "2019.05.31"]
[EventType "swiss"]
[EventCountry "ROU"]
[SourceTitle "playchess.com"]
[Source "ChessBase"]
[SourceQuality "1"]
[TimeControl "40/5400+30:1800+30"]

1. e4 {[%emt 0:00:00]} e5 {[%emt 0:00:00]} 2. Nf3 {[%emt 0:00:36]} Nc6 {[%emt 0:00:00]} 3. d4 {[%emt 0:01:09]} exd4 {[%emt 0:00:00]} 4. Nxd4 {[%emt 0:00:19]} Nf6 {[%emt 0:00:00]} 5. Nxc6 {[%emt 0:11:08]} bxc6 {[%emt 0:00:15]} 6. e5 {[%emt 0:01:06]} Qe7 {[%emt 0:01:45]} 7. Qe2 {[%emt 0:02:53]} Nd5 {[%emt 0:00:08]} 8. c4 {[%emt 0:01:42]} Ba6 {[%emt 0:00:11]} 9. b3 {[%emt 0:01:14]} g6 {[%emt 0:01:32]} 10. Bb2 {[%emt 0:02:29]} Bg7 {[%emt 0:00:20]} 11. Nd2 {[%emt 0:05:17]} O-O {[%emt 0:04:04]} 12. O-O-O {[%emt 0:07:55]} Rfe8 {[%emt 0:05:36]} 13. Re1 {[%emt 0:07:26]} Nb6 {[%emt 0:06:39]} 14. g3 {[%emt 0:09:07]} Bb7 {[%emt 0:05:38]} 15. f4 {[%emt 0:05:02]} a5 {[%emt 0:03:31]} 16. a4 {[%emt 0:06:26]} d5 {[%emt 0:02:44]} 17. Qf2 {[%emt 0:07:39]} f6 {[%emt 0:06:48]} 18. Bd3 {[%emt 0:03:29]} fxe5 {[%emt 0:04:36]} 19. fxe5 {[%emt 0:01:31]} Nd7 {[%emt 0:02:23]} 20. Nf3 {[%emt 0:02:03]} Nc5 {[%emt 0:04:12]} 21. Qc2 {[%emt 0:02:20]} Nxd3+ {[%emt 0:03:09]} 22. Qxd3 {[%emt 0:00:22]} Ba6 {[%emt 0:04:04]} 23. Qc2 {[%emt 0:02:46]} Rab8 {[%emt 0:08:09]} 24. h4 {[%emt 0:01:39]} Qb4 {[%emt 0:05:47]} 25. Nd4 {[%emt 0:03:16]} Bxe5 {[%emt 0:09:14]} 26. Nxc6 {[%emt 0:01:16]} Bf4+ {[%emt 0:00:19]} 27. Kd1 {[%emt 0:01:43]} Qd6 {[%emt 0:00:59]} 28. Qc3 {[%emt 0:01:15]} dxc4+ {[%emt 0:00:53]} 29. Kc2 {[%emt 0:00:42]} cxb3+ {[%emt 0:00:31]} 30. Kb1 {[%emt 0:00:46]} Qd3+ 31. Ka1 {[%emt 0:03:08]} Qxc3 {[%emt 0:05:27]} 32. Bxc3 {[%emt 0:00:12]} Bxg3 {[%emt 0:00:18]} 33. Nxb8 {[%emt 0:03:28]} Bxe1 {[%emt 0:00:07]} 34. Rxe1 {[%emt 0:00:07]} Rxb8 {[%emt 0:00:13]} 35. Re7 {[%emt 0:00:10]} c5 {[%emt 0:08:25]} 36. Rg7+ {[%emt 0:00:27]} Kf8 {[%emt 0:00:30]} 37. Rxh7 {[%emt 0:00:07]} Rb7 {[%emt 0:00:17]} 38. Rh8+ {[%emt 0:00:13]} Kf7 {[%emt 0:00:14]} 39. h5 {[%emt 0:01:09]} c4 {[%emt 0:03:40]} 40. Rh7+ {[%emt 0:00:00]} Kg8 {[%emt 0:00:00]} 41. Rh8+ {[%emt 0:01:12]} Kf7 {[%emt 0:01:13]} 42. Rh7+ {[%emt 0:07:10]} Kg8 {[%emt 0:02:08]} 43. Rh8+ {[%emt 0:00:18]} Kf7 {[%emt 0:00:08]} 44. h6 {[%emt 0:02:26]} b2+ {[%emt 0:12:57]} 45. Bxb2 {[%emt 0:04:13]} c3 {[%emt 0:00:33]} 46. Bxc3 {[%emt 0:00:51]} g5 {[%emt 0:02:14]} 47. h7 {[%emt 0:00:20]} Kg6 {[%emt 0:00:29]} 48. Ra8 {[%emt 0:00:14]} Kxh7 {[%emt 0:00:14]} 49. Rxa6 {[%emt 0:00:07]} Rb3 {[%emt 0:00:35]} 1/2-1/2

[Event "European School-ch 2019"]
[Site "Mamaia"]
[Date "2019.06.06"]
[Round "7.35"]
[White "Yasmo, Daniil"]
[Black "Utlu, Mustafa Ali"]
[Result "1/2-1/2"]
[ECO "A48"]
[WhiteElo "1424"]
[BlackElo "1148"]
[Annotator "NA RC"]
[PlyCount "71"]
[EventDate "2019.05.31"]
[EventType "swiss"]
[EventCountry "ROU"]
[SourceTitle "playchess.com"]
[Source "ChessBase"]
[SourceQuality "1"]
[TimeControl "40/5400+30:1800+30"]

1. d4 {[%emt 0:00:00]} Nf6 {[%emt 0:00:00]} 2. Nf3 {[%emt 0:00:00]} g6 {[%emt 0:00:01]} 3. Nbd2 {[%emt 0:00:10]} d5 {[%emt 0:00:34]} 4. g3 {[%emt 0:00:36]} Bg7 {[%emt 0:00:20]} 5. Bg2 {[%emt 0:01:06]} c5 {[%emt 0:00:38]} 6. dxc5 {[%emt 0:01:06]} Nc6 {[%emt 0:00:45]} 7. O-O {[%emt 0:02:03]} O-O {[%emt 0:00:38]} 8. Nb3 {[%emt 0:05:57]} e5 {[%emt 0:06:48]} 9. c3 {[%emt 0:02:48]} Re8 {[%emt 0:01:10]} 10. Bg5 {[%emt 0:07:57]} Be6 {[%emt 0:03:34]} 11. Qc1 {[%emt 0:12:41]} Qd7 {[%emt 0:04:02]} 12. Bxf6 {[%emt 0:09:48]} Bxf6 {[%emt 0:01:00]} 13. Ng5 {[%emt 0:08:19]} Rad8 {[%emt 0:01:31]} 14. Nxe6 {[%emt 0:05:05]} Qxe6 {[%emt 0:02:30]} 15. Rd1 {[%emt 0:03:08]} Bg7 {[%emt 0:02:59]} 16. Qc2 {[%emt 0:05:44]} f5 {[%emt 0:02:40]} 17. Rac1 {[%emt 0:05:05]} e4 {[%emt 0:09:10]} 18. Nd4 {[%emt 0:01:50]} Bxd4 {[%emt 0:00:49]} 19. cxd4 {[%emt 0:00:10]} g5 {[%emt 0:01:37]} 20. e3 {[%emt 0:04:45]} f4 {[%emt 0:01:45]} 21. exf4 {[%emt 0:02:53]} gxf4 {[%emt 0:02:36]} 22. gxf4 {[%emt 0:05:11]} Nb4 {[%emt 0:00:39]} 23. Qd2 {[%emt 0:03:42]} Nd3 {[%emt 0:00:59]} 24. Rb1 {[%emt 0:00:19]} Qf6 {[%emt 0:00:20]} 25. Qe3 {[%emt 0:00:27]} Nxf4 {[%emt 0:00:27]} 26. Kh1 {[%emt 0:00:54]} Kh8 {[%emt 0:00:31]} 27. Rg1 {[%emt 0:00:48]} Nd3 {[%emt 0:00:56]} 28. Rbf1 {[%emt 0:01:05]} Rf8 {[%emt 0:01:04]} 29. f3 {[%emt 0:00:34]} Qh4 {[%emt 0:02:28]} 30. fxe4 {[%emt 0:01:10]} dxe4 {[%emt 0:04:17]} 31. Bxe4 {[%emt 0:02:30]} Nf2+ {[%emt 0:01:23]} 32. Rxf2 {[%emt 0:00:13]} Rxf2 {[%emt 0:00:30]} 33. Bg2 {[%emt 0:00:26]} Rf5 {[%emt 0:02:24]} 34. d5 {[%emt 0:00:52]} Rh5 {[%emt 0:00:39]} 35. Qc3+ {[%emt 0:00:17]} Kg8 {[%emt 0:00:32]} 36. Bh3+ {[%emt 0:00:54]} 1/2-1/2

[Event "European School-ch 2019"]
[Site "Mamaia"]
[Date "2019.06.06"]
[Round "7.38"]
[White "Simsek, Suat Can"]
[Black "Babayev, Yusif"]
[Result "0-1"]
[ECO "C28"]
[WhiteElo "1761"]
[BlackElo "1230"]
[Annotator "NA RC"]
[PlyCount "74"]
[EventDate "2019.05.31"]
[EventType "swiss"]
[EventCountry "ROU"]
[SourceTitle "playchess.com"]
[Source "ChessBase"]
[SourceQuality "1"]
[TimeControl "40/5400+30:1800+30"]

1. e4 {[%emt 0:00:00]} e5 {[%emt 0:00:00]} 2. Nc3 {[%emt 0:01:10]} Nc6 {[%emt 0:00:00]} 3. Bc4 {[%emt 0:01:21]} Nf6 {[%emt 0:00:09]} 4. d3 {[%emt 0:01:34]} h6 {[%emt 0:00:08]} 5. Be3 {[%emt 0:02:27]} d6 {[%emt 0:01:02]} 6. h3 {[%emt 0:00:52]} Be6 {[%emt 0:00:10]} 7. Nd5 {[%emt 0:00:38]} Bxd5 {[%emt 0:01:27]} 8. exd5 {[%emt 0:01:31]} Ne7 {[%emt 0:00:36]} 9. Bb5+ {[%emt 0:00:28]} c6 {[%emt 0:00:26]} 10. dxc6 {[%emt 0:00:39]} bxc6 {[%emt 0:00:18]} 11. Ba4 {[%emt 0:01:12]} Qa5+ {[%emt 0:00:39]} 12. Bd2 {[%emt 0:00:30]} Qxa4 {[%emt 0:00:44]} 13. b3 {[%emt 0:00:33]} Qa6 {[%emt 0:00:43]} 14. Ne2 {[%emt 0:00:22]} Ng6 {[%emt 0:00:22]} 15. O-O {[%emt 0:00:42]} Be7 {[%emt 0:00:17]} 16. f4 {[%emt 0:00:53]} exf4 {[%emt 0:02:01]} 17. Nxf4 {[%emt 0:00:23]} Nxf4 {[%emt 0:00:08]} 18. Bxf4 {[%emt 0:00:17]} O-O {[%emt 0:00:50]} 19. Qd2 {[%emt 0:00:47]} Kh7 {[%emt 0:04:49]} 20. Rae1 {[%emt 0:03:07]} Rae8 {[%emt 0:01:41]} 21. Rxe7 {[%emt 0:00:40]} Rxe7 {[%emt 0:01:39]} 22. Bxd6 {[%emt 0:00:09]} Qb6+ {[%emt 0:00:11]} 23. Kh1 {[%emt 0:00:20]} Nh5 {[%emt 0:00:57]} 24. Kh2 {[%emt 0:00:23]} Rd7 {[%emt 0:02:03]} 25. Bxf8 {[%emt 0:00:36]} Qb8+ {[%emt 0:00:15]} 26. Kg1 {[%emt 0:00:28]} Qxf8 {[%emt 0:00:15]} 27. Qf2 {[%emt 0:00:32]} Qe7 {[%emt 0:01:47]} 28. Qf5+ {[%emt 0:01:45]} g6 {[%emt 0:00:09]} 29. Qf3 {[%emt 0:00:39]} Qc5+ {[%emt 0:01:06]} 30. Kh2 {[%emt 0:00:27]} Qxc2 {[%emt 0:03:36]} 31. Rf2 {[%emt 0:04:26]} Qc5 {[%emt 0:02:11]} 32. g4 {[%emt 0:03:43]} Qe5+ {[%emt 0:01:44]} 33. Kg2 {[%emt 0:00:22]} Ng7 {[%emt 0:01:03]} 34. Qxc6 {[%emt 0:00:27]} Rxd3 {[%emt 0:00:40]} 35. Qf6 {[%emt 0:02:39]} Qg3+ {[%emt 0:00:11]} 36. Kf1 {[%emt 0:00:10]} Rd1+ {[%emt 0:00:16]} 37. Ke2 {[%emt 0:00:06]} Qd3# {[%emt 0:00:08]} 0-1

[Event "European School-ch 2019"]
[Site "Mamaia"]
[Date "2019.06.06"]
[Round "7.41"]
[White "Mgeladze, Kesaria"]
[Black "State-Ungureanu, Elena-Anastasia"]
[Result "0-1"]
[ECO "C26"]
[WhiteElo "1322"]
[BlackElo "1057"]
[Annotator "NA RC"]
[PlyCount "118"]
[EventDate "2019.05.31"]
[EventType "swiss"]
[EventCountry "ROU"]
[SourceTitle "playchess.com"]
[Source "ChessBase"]
[SourceQuality "1"]
[TimeControl "40/5400+30:1800+30"]

1. e4 {[%emt 0:00:00]} e5 {[%emt 0:00:00]} 2. Nc3 {[%emt 0:00:00]} Nf6 {[%emt 0:00:00]} 3. g3 {[%emt 0:00:00]} d5 {[%emt 0:00:00]} 4. exd5 {[%emt 0:00:00]} Nxd5 {[%emt 0:00:00]} 5. Bg2 {[%emt 0:00:00]} Nxc3 {[%emt 0:00:00]} 6. bxc3 {[%emt 0:00:04]} Bd6 {[%emt 0:00:00]} 7. Ne2 {[%emt 0:00:15]} O-O {[%emt 0:00:05]} 8. O-O {[%emt 0:00:07]} c6 {[%emt 0:00:06]} 9. Rb1 {[%emt 0:00:23]} Nd7 {[%emt 0:00:21]} 10. d4 {[%emt 0:01:58]} Qa5 11. a3 {[%emt 0:10:00]} Nb6 {[%emt 0:22:52]} 12. Qe1 {[%emt 0:29:06]} Bf5 {[%emt 0:01:22]} 13. Qd1 {[%emt 0:03:02]} Qa4 {[%emt 0:22:27]} 14. Rb3 {[%emt 0:03:08]} Rab8 {[%emt 0:33:43]} 15. h3 {[%emt 0:10:52]} Nc4 {[%emt 0:05:16]} 16. g4 {[%emt 0:00:52]} Bg6 {[%emt 0:00:59]} 17. dxe5 {[%emt 0:01:31]} Bxe5 {[%emt 0:00:51]} 18. Rb4 {[%emt 0:00:28]} Qa6 {[%emt 0:01:00]} 19. f4 {[%emt 0:00:37]} Rfd8 {[%emt 0:01:11]} 20. Qe1 {[%emt 0:00:34]} Bd6 {[%emt 0:00:15]} 21. Rb1 {[%emt 0:00:47]} Bxc2 {[%emt 0:00:15]} 22. Ra1 {[%emt 0:00:40]} Qb6+ {[%emt 0:01:48]} 23. Kh1 {[%emt 0:00:27]} Ne3 {[%emt 0:00:31]} 24. Bxe3 {[%emt 0:01:01]} Qxe3 {[%emt 0:00:06]} 25. Rf3 {[%emt 0:00:30]} Qe7 {[%emt 0:00:38]} 26. a4 {[%emt 0:07:11]} Re8 {[%emt 0:01:21]} 27. Rf2 {[%emt 0:01:23]} Bc5 {[%emt 0:00:08]} 28. Bf3 {[%emt 0:01:24]} Bxf2 {[%emt 0:00:13]} 29. Qxf2 {[%emt 0:00:05]} Be4 {[%emt 0:00:28]} 30. Ng3 {[%emt 0:03:06]} Bxf3+ {[%emt 0:00:24]} 31. Qxf3 {[%emt 0:00:07]} Qe3 {[%emt 0:00:12]} 32. Qg2 {[%emt 0:00:32]} Qxc3 {[%emt 0:00:09]} 33. Rf1 {[%emt 0:00:30]} Qc4 {[%emt 0:00:17]} 34. Ra1 {[%emt 0:00:58]} Rbd8 {[%emt 0:00:08]} 35. Qb2 {[%emt 0:00:42]} Qd4 {[%emt 0:00:19]} 36. Qc1 {[%emt 0:00:17]} Qe3 {[%emt 0:00:27]} 37. Nf5 {[%emt 0:01:50]} Qxh3+ {[%emt 0:00:17]} 38. Kg1 {[%emt 0:00:14]} Qxg4+ {[%emt 0:00:04]} 39. Kh1 {[%emt 0:00:11]} Qxf5 {[%emt 0:00:09]} 40. Qb2 {[%emt 0:00:00]} Qe4+ {[%emt 0:00:00]} 41. Kg1 {[%emt 0:00:26]} Qd4+ {[%emt 0:00:27]} 42. Qxd4 {[%emt 0:00:15]} Rxd4 {[%emt 0:00:04]} 43. Rb1 {[%emt 0:00:10]} b6 {[%emt 0:00:13]} 44. Ra1 {[%emt 0:00:12]} Rxf4 {[%emt 0:00:06]} 45. Kg2 {[%emt 0:00:11]} Ree4 {[%emt 0:00:14]} 46. Rd1 {[%emt 0:00:07]} h6 {[%emt 0:00:15]} 47. Rd8+ {[%emt 0:00:08]} Kh7 {[%emt 0:00:12]} 48. Rd1 {[%emt 0:00:08]} Rxa4 {[%emt 0:00:05]} 49. Kg1 {[%emt 0:00:10]} Ra2 {[%emt 0:00:06]} 50. Kh1 {[%emt 0:00:04]} h5 {[%emt 0:00:33]} 51. Re1 {[%emt 0:00:43]} g5 {[%emt 0:00:27]} 52. Rd1 {[%emt 0:00:15]} g4 {[%emt 0:00:10]} 53. Rg1 {[%emt 0:00:04]} Rff2 {[%emt 0:00:06]} 54. Rd1 {[%emt 0:00:06]} g3 {[%emt 0:00:08]} 55. Re1 {[%emt 0:00:06]} Rh2+ {[%emt 0:00:18]} 56. Kg1 {[%emt 0:00:04]} h4 {[%emt 0:00:28]} 57. Rd1 {[%emt 0:00:11]} h3 {[%emt 0:00:12]} 58. Rc1 {[%emt 0:00:05]} Rag2+ {[%emt 0:00:14]} 59. Kf1 {[%emt 0:00:04]} Rh1# {[%emt 0:00:07]} 0-1

[Event "European School-ch 2019"]
[Site "Mamaia"]
[Date "2019.06.06"]
[Round "7.43"]
[White "Zarkua, Anastasia"]
[Black "Korolchuk, Vladyslava"]
[Result "1-0"]
[ECO "D46"]
[WhiteElo "1108"]
[BlackElo "1032"]
[Annotator "NA RC"]
[PlyCount "97"]
[EventDate "2019.05.31"]
[EventType "swiss"]
[EventCountry "ROU"]
[SourceTitle "playchess.com"]
[Source "ChessBase"]
[SourceQuality "1"]
[TimeControl "40/5400+30:1800+30"]

1. Nf3 {[%emt 0:00:00]} d5 {[%emt 0:00:00]} 2. c4 {[%emt 0:00:50]} c6 {[%emt 0:01:12]} 3. e3 {[%emt 0:05:11]} Nf6 {[%emt 0:02:22]} 4. d4 {[%emt 0:01:04]} e6 {[%emt 0:02:39]} 5. Nc3 {[%emt 0:01:31]} Bd6 {[%emt 0:01:09]} 6. Bd3 {[%emt 0:02:05]} Nbd7 {[%emt 0:02:11]} 7. O-O {[%emt 0:02:48]} O-O {[%emt 0:00:35]} 8. e4 {[%emt 0:01:42]} dxe4 {[%emt 0:01:44]} 9. Nxe4 {[%emt 0:00:26]} Bc7 {[%emt 0:03:09]} 10. Bg5 {[%emt 0:01:50]} h6 {[%emt 0:05:59]} 11. Bh4 {[%emt 0:01:33]} e5 {[%emt 0:05:50]} 12. Nxf6+ {[%emt 0:00:49]} Nxf6 {[%emt 0:09:23]} 13. dxe5 {[%emt 0:01:17]} g5 {[%emt 0:07:44]} 14. Bg3 {[%emt 0:03:48]} Nd7 {[%emt 0:05:25]} 15. Qe2 {[%emt 0:03:25]} g4 {[%emt 0:03:24]} 16. Nh4 {[%emt 0:01:27]} Bxe5 {[%emt 0:02:50]} 17. Qxg4+ {[%emt 0:01:30]} Qg5 {[%emt 0:03:55]} 18. Qf5 {[%emt 0:04:49]} Qg7 {[%emt 0:01:20]} 19. Rae1 {[%emt 0:03:04]} Bxb2 {[%emt 0:02:55]} 20. Qf4 {[%emt 0:04:32]} Nc5 {[%emt 0:06:59]} 21. Bb1 {[%emt 0:02:30]} Be6 {[%emt 0:03:26]} 22. Re2 {[%emt 0:04:09]} Bf6 {[%emt 0:03:40]} 23. Nf5 {[%emt 0:01:04]} Bxf5 {[%emt 0:01:05]} 24. Bxf5 {[%emt 0:00:49]} Bg5 {[%emt 0:03:59]} 25. Qg4 {[%emt 0:01:55]} Rfe8 {[%emt 0:02:50]} 26. Rfe1 {[%emt 0:02:12]} Rxe2 {[%emt 0:01:29]} 27. Qxe2 {[%emt 0:00:09]} a6 {[%emt 0:04:57]} 28. Bd6 {[%emt 0:00:15]} Na4 {[%emt 0:02:22]} 29. Qe8+ {[%emt 0:00:32]} Rxe8 {[%emt 0:00:27]} 30. Rxe8+ {[%emt 0:00:06]} Qf8 {[%emt 0:00:12]} 31. Rxf8+ {[%emt 0:00:03]} Kg7 {[%emt 0:00:32]} 32. Rb8 {[%emt 0:00:11]} b5 {[%emt 0:00:20]} 33. cxb5 {[%emt 0:00:22]} axb5 {[%emt 0:00:14]} 34. Bd7 {[%emt 0:00:11]} c5 {[%emt 0:00:35]} 35. Bxb5 {[%emt 0:01:02]} Nc3 {[%emt 0:00:19]} 36. a4 {[%emt 0:00:17]} Ne4 {[%emt 0:00:32]} 37. Be5+ {[%emt 0:00:21]} Bf6 {[%emt 0:00:20]} 38. Bxf6+ {[%emt 0:00:10]} Kxf6 {[%emt 0:00:14]} 39. a5 {[%emt 0:00:13]} Nd2 {[%emt 0:00:33]} 40. a6 {[%emt 0:00:00]} c4 {[%emt 0:00:00]} 41. a7 {[%emt 0:00:27]} c3 {[%emt 0:00:33]} 42. a8=Q {[%emt 0:00:07]} c2 {[%emt 0:00:20]} 43. Qc6+ {[%emt 0:00:04]} Kg7 {[%emt 0:00:26]} 44. Qxc2 {[%emt 0:00:05]} Nf3+ {[%emt 0:00:26]} 45. gxf3 {[%emt 0:00:09]} h5 {[%emt 0:00:13]} 46. Qf5 {[%emt 0:00:06]} h4 {[%emt 0:00:18]} 47. Qg5+ {[%emt 0:00:05]} Kh7 {[%emt 0:00:25]} 48. Bd3+ {[%emt 0:00:03]} f5 {[%emt 0:00:19]} 49. Bxf5# {[%emt 0:00:03]} 1-0

[Event "European School-ch 2019"]
[Site "Mamaia"]
[Date "2019.06.06"]
[Round "7.44"]
[White "Voronaya, Eva"]
[Black "Sida, Flavia-Maria"]
[Result "0-1"]
[ECO "D30"]
[WhiteElo "1005"]
[BlackElo "1219"]
[Annotator "NA RC"]
[PlyCount "138"]
[EventDate "2019.05.31"]
[EventType "swiss"]
[EventCountry "ROU"]
[SourceTitle "playchess.com"]
[Source "ChessBase"]
[SourceQuality "1"]
[TimeControl "40/5400+30:1800+30"]

1. d4 {[%emt 0:00:00]} d5 {[%emt 0:00:00]} 2. c4 {[%emt 0:00:00]} e6 {[%emt 0:00:00]} 3. Nf3 {[%emt 0:00:00]} Nf6 {[%emt 0:00:09]} 4. g3 {[%emt 0:00:00]} b6 {[%emt 0:00:37]} 5. Bg2 {[%emt 0:00:41]} Bb7 {[%emt 0:00:21]} 6. O-O {[%emt 0:00:46]} Be7 {[%emt 0:04:44]} 7. Qc2 {[%emt 0:02:56]} O-O {[%emt 0:10:26]} 8. Bf4 {[%emt 0:02:56]} c5 {[%emt 0:03:17]} 9. cxd5 {[%emt 0:11:37]} Nxd5 {[%emt 0:03:28]} 10. Qd2 {[%emt 0:05:30]} Nxf4 {[%emt 0:09:13]} 11. Qxf4 {[%emt 0:00:23]} cxd4 {[%emt 0:00:31]} 12. Qxd4 {[%emt 0:00:47]} Qxd4 {[%emt 0:01:16]} 13. Nxd4 {[%emt 0:02:55]} Bxg2 {[%emt 0:00:47]} 14. Kxg2 {[%emt 0:00:17]} Bf6 {[%emt 0:00:23]} 15. e3 {[%emt 0:03:35]} Rd8 {[%emt 0:00:47]} 16. Nc3 {[%emt 0:03:40]} Bxd4 {[%emt 0:01:23]} 17. exd4 {[%emt 0:00:09]} Rxd4 {[%emt 0:00:21]} 18. Rac1 {[%emt 0:02:19]} Na6 {[%emt 0:07:55]} 19. a3 {[%emt 0:04:24]} Rd7 {[%emt 0:03:44]} 20. Rfd1 {[%emt 0:04:32]} Rxd1 {[%emt 0:07:27]} 21. Rxd1 {[%emt 0:00:38]} Nc7 {[%emt 0:00:41]} 22. Rd7 {[%emt 0:01:11]} Ne8 {[%emt 0:00:21]} 23. Nb5 {[%emt 0:03:30]} a6 {[%emt 0:00:28]} 24. Nc7 {[%emt 0:02:03]} Nxc7 {[%emt 0:00:25]} 25. Rxc7 {[%emt 0:02:32]} g6 {[%emt 0:00:51]} 26. Rb7 {[%emt 0:00:26]} b5 {[%emt 0:00:19]} 27. Rb6 {[%emt 0:00:12]} Ra7 {[%emt 0:00:48]} 28. Rb8+ {[%emt 0:00:27]} Kg7 {[%emt 0:00:15]} 29. Rb6 {[%emt 0:00:06]} Kf6 {[%emt 0:00:19]} 30. Kf3 {[%emt 0:00:25]} h5 {[%emt 0:02:32]} 31. Kf4 {[%emt 0:03:41]} Ke7 {[%emt 0:02:37]} 32. Ke5 {[%emt 0:01:52]} Kd7 {[%emt 0:01:52]} 33. Rd6+ {[%emt 0:01:07]} Ke7 {[%emt 0:00:12]} 34. Rb6 {[%emt 0:00:21]} Kd7 {[%emt 0:08:55]} 35. Rd6+ {[%emt 0:00:15]} Ke7 {[%emt 0:00:09]} 36. Rb6 {[%emt 0:00:14]} f6+ {[%emt 0:00:14]} 37. Kd4 {[%emt 0:00:14]} Rd7+ {[%emt 0:05:51]} 38. Kc3 {[%emt 0:00:36]} Rc7+ {[%emt 0:00:52]} 39. Kb3 {[%emt 0:01:16]} Ra7 {[%emt 0:06:47]} 40. Kb4 {[%emt 0:00:00]} Kd7 {[%emt 0:00:00]} 41. Ka5 {[%emt 0:02:52]} f5 {[%emt 0:00:40]} 42. Kb4 {[%emt 0:00:14]} Ra8 {[%emt 0:02:59]} 43. Ka5 {[%emt 0:01:24]} Ra7 {[%emt 0:02:06]} 44. Kb4 {[%emt 0:00:40]} g5 {[%emt 0:01:11]} 45. Ka5 {[%emt 0:00:26]} g4 {[%emt 0:01:29]} 46. Kb4 {[%emt 0:00:15]} Ke7 {[%emt 0:15:00]} 47. Ka5 {[%emt 0:00:10]} Kd7 {[%emt 0:00:11]} 48. Rxa6 {[%emt 0:01:16]} Rxa6+ {[%emt 0:00:12]} 49. Kxa6 {[%emt 0:00:08]} Kc6 {[%emt 0:00:08]} 50. Ka5 {[%emt 0:00:06]} Kc5 {[%emt 0:04:56]} 51. Ka6 {[%emt 0:00:41]} e5 {[%emt 0:01:07]} 52. b4+ {[%emt 0:01:31]} Kc6 {[%emt 0:01:28]} 53. Ka5 {[%emt 0:01:27]} f4 {[%emt 0:03:37]} 54. gxf4 {[%emt 0:00:41]} exf4 {[%emt 0:00:22]} 55. Ka6 {[%emt 0:00:10]} h4 {[%emt 0:00:44]} 56. a4 {[%emt 0:03:47]} bxa4 {[%emt 0:00:14]} 57. b5+ {[%emt 0:00:05]} Kc5 {[%emt 0:03:09]} 58. b6 {[%emt 0:00:29]} a3 {[%emt 0:00:06]} 59. b7 {[%emt 0:00:05]} a2 {[%emt 0:00:08]} 60. b8=Q {[%emt 0:00:13]} a1=Q+ {[%emt 0:00:21]} 61. Kb7 {[%emt 0:00:07]} Qb2+ {[%emt 0:00:20]} 62. Kc7 {[%emt 0:00:08]} Qxb8+ {[%emt 0:00:08]} 63. Kxb8 {[%emt 0:00:06]} g3 {[%emt 0:00:15]} 64. hxg3 {[%emt 0:00:05]} hxg3 {[%emt 0:00:08]} 65. fxg3 {[%emt 0:00:04]} fxg3 {[%emt 0:00:07]} 66. Ka8 {[%emt 0:00:06]} g2 {[%emt 0:01:10]} 67. Kb8 {[%emt 0:00:06]} g1=Q {[%emt 0:00:10]} 68. Ka8 {[%emt 0:00:10]} Kb6 {[%emt 0:00:17]} 69. Kb8 {[%emt 0:00:05]} Qg8# {[%emt 0:00:27]} 0-1

[Event "European School-ch 2019"]
[Site "Mamaia"]
[Date "2019.06.06"]
[Round "7.45"]
[White "Zhapova, Yana"]
[Black "Tsetskhladze, Mariam"]
[Result "1-0"]
[ECO "B10"]
[WhiteElo "1804"]
[BlackElo "1174"]
[Annotator "NA RC"]
[PlyCount "81"]
[EventDate "2019.05.31"]
[EventType "swiss"]
[EventCountry "ROU"]
[SourceTitle "playchess.com"]
[Source "ChessBase"]
[SourceQuality "1"]
[TimeControl "40/5400+30:1800+30"]

1. e4 {[%emt 0:00:00]} c6 {[%emt 0:00:04]} 2. Nc3 {[%emt 0:00:16]} d5 {[%emt 0:00:10]} 3. Nf3 {[%emt 0:00:15]} a6 {[%emt 0:00:56]} (3... Bg4 4. h3 Bxf3 5. Qxf3 e6 6. g3 Nf6 7. a3 Bc5 8. d3 O-O 9. Bg2 Nbd7 10. O-O b5 11. Qd1 Qb6 12. Qe2 a5 13. Kh1 d4 14. Nb1 e5 {0-1 (47) Vallejo Pons,F (2693)-Anand,V (2774) Karlsruhe/Baden Baden 2019}) 4. d4 {[%emt 0:03:39]} Bg4 {[%emt 0:03:42]} 5. h3 {[%emt 0:08:42]} Bxf3 {[%emt 0:01:06]} 6. Qxf3 {[%emt 0:00:09] B11: Caro-Kann: Two Knights Variation} e6 {[%emt 0:00:36]} 7. Bd3 {[%emt 0:02:39]} Nd7 $146 {[%emt 0:08:39]} ({Predecessor:} 7... Nf6 8. O-O Be7 9. e5 Nfd7 10. Ne2 c5 11. c3 Nc6 {½-½ (129) Muzychuk,A (2560)-Zhao,X (2552) Khanty-Mansiysk 2014}) 8. O-O {[%emt 0:01:12]} dxe4 {[%emt 0:04:14]} 9. Nxe4 {[%emt 0:01:02]} Ngf6 {[%emt 0:01:50]} 10. c3 {[%emt 0:01:08]} Nxe4 {[%emt 0:03:23]} 11. Bxe4 {[%emt 0:00:25]} Nf6 {[%emt 0:02:12]} 12. Bc2 Bd6 {[%emt 0:05:01]} 13. Bg5 {[%emt 0:05:50]} O-O {[%emt 0:03:43]} 14. Rfe1 {[%emt 0:06:16]} Be7 {[%emt 0:08:46]} 15. Qd3 {[%emt 0:06:24]} g6 {[%emt 0:02:57]} 16. Rad1 {[%emt 0:02:10]} Nd5 {[%emt 0:06:26]} 17. Bh6 {[%emt 0:01:46]} Re8 {[%emt 0:00:21]} 18. Qg3 {[%emt 0:03:47]} Bf6 {[%emt 0:07:32]} 19. c4 $11 {[%emt 0:06:14]} Nb6 {[%emt 0:05:43]} 20. b3 {[%emt 0:05:25]} Rc8 {[%emt 0:06:26]} 21. Be3 {[%emt 0:04:42]} Na8 {[%emt 0:08:08]} 22. Qf3 {[%emt 0:04:28]} Bg7 {[%emt 0:06:19]} 23. Be4 {[%emt 0:03:05]} f5 {[%emt 0:02:38]} 24. Bb1 {[%emt 0:01:02]} Qa5 {[%emt 0:03:07]} 25. Bd2 Qd8 {[%emt 0:00:46]} 26. Be3 {[%emt 0:03:11]} Qa5 {[%emt 0:00:27]} 27. h4 {[%emt 0:01:32]} e5 {[%emt 0:01:49]} 28. dxe5 {[%emt 0:00:59]} Rxe5 {[%emt 0:02:15]} 29. Bd2 {[%emt 0:01:58]} Qc7 {[%emt 0:01:14]} 30. Bf4 {[%emt 0:01:19]} Rxe1+ {[%emt 0:00:15]} 31. Rxe1 {[%emt 0:00:05]} Qd8 {[%emt 0:01:38]} 32. Qe2 {[%emt 0:01:05]} Nc7 {[%emt 0:02:07]} 33. h5 {[%emt 0:00:20]} Bc3 {[%emt 0:00:29]} 34. Rd1 {[%emt 0:00:15]} Qf8 {[%emt 0:01:12]} 35. Qd3 {[%emt 0:03:08]} Bf6 {[%emt 0:00:22]} 36. hxg6 {[%emt 0:00:38]} hxg6 {[%emt 0:00:02]} 37. Qg3 {[%emt 0:00:25]} Qg7 {[%emt 0:00:25]} 38. Re1 {[%emt 0:04:32]} b5 {[%emt 0:00:32]} 39. Bxc7 {[%emt 0:03:46]} Rxc7 {[%emt 0:00:09]} 40. Re8+ {[%emt 0:00:00]} Kh7 {[%emt 0:00:00]} 41. Qh2+ {[%emt 0:00:15]} 1-0